Cogmind - Beta 17.1 @@@ ROGUE MODE // 2026.09.16 @ 16:04:54 Player: frazz Result: Destroyed by P-70 Sage with Tesla Rifle Performance ------------- Evolutions (5) 2500 Regions Visited (10) 2000 Robots Destroyed (63) 315 Value Destroyed (1779) 1779 Prototype IDs (36) 720 Alien Tech Used (0) 0 Bonus (321) 321 TOTAL SCORE: 7635 Bonus ------- Follower Combat Kills 21 Aligned with FarCom 300 Cogmind --------- Core Integrity 0/1000 Matter 41/300 Energy 100/100 System Corruption 26% Temperature Cool (0) Movement Core (50) Location -5/Factory Parts ------- > --- POWER (3) -------- (None) > --- PROPULSION (4) --- (None) > --- UTILITY (7) ------ (None) > --- WEAPON (3) ------- (None) > --- INVENTORY (5) ---- Neutrino Core Enhanced Armored Leg Enhanced Armored Leg Large Storage Unit Peak State ------------ > --- POWER ------------ Light Ion Engine Light Nuclear Core Fusion Compressor > --- PROPULSION ------- Armored Leg Armored Leg Armored Leg Enhanced Armored Leg > --- UTILITY ---------- Small Storage Unit Improved Transmission Jammer Reaction Control System Advanced System Restoration Module Long-range Tractor Beam > --- WEAPON ----------- High-powered Shock Rifle Variable Charge Gun Hypervelocity Gauss Rifle > --- INVENTORY -------- Neutrino Core Neutrino Core Neutrino Core Flexi-carbon Leg Large Storage Unit High-powered Shock Rifle Improved EM Pulse Cannon [Rating: 72] Favorites ----------- Power Light Ion Engine Engine Light Ion Engine Power Core Nuclear Core Propulsion Aluminum Leg Treads Improved Treads Leg Aluminum Leg Wheel Armored Wheel Hover Unit Gravmag Array Utility Small Storage Unit Device Seismic Detector Storage Small Storage Unit Processor Visual Processing Unit Protection Hardened Light Armor Plating Weapon Light Assault Rifle Energy Gun Field Laser Energy Cannon Improved EM Pulse Cannon Ballistic Gun Light Assault Rifle Ballistic Cannon Assault Cannon Build | -11 -10 -10 -9 -9 -9 -8 -8 -7 -6 -5 ------- Run | Yrd Mat Min Mat Min Exi Min Mat Fac Fac Fac Slots Evolved 10 | . . . 2 . . . 2 2 2 2 Power 2 | . . . . . . . 1 . . 1 Propulsion 2 | . . . 1 . . . . 1 . . Utility 5 | . . . 1 . . . 1 1 1 1 Weapon 1 | . . . . . . . . . 1 . Parts Attached 81 | 8 3 2 21 . . 9 3 6 5 24 Power 19 | 1 1 1 7 . . 1 2 1 . 5 Engine 13 | 1 1 1 7 . . 1 1 1 . . Core 6 | . . . . . . . 1 . . 5 Reactor . | . . . . . . . . . . . Propulsion 29 | 2 2 . 9 . . 5 . 1 1 9 Treads 1 | . . . 1 . . . . . . . Leg 24 | 2 2 . 7 . . 5 . 1 . 7 Wheel 3 | . . . 1 . . . . . 1 1 Hover 1 | . . . . . . . . . . 1 Flight . | . . . . . . . . . . . Utility 15 | 2 . . 2 . . 2 . 4 1 4 Device 11 | 1 . . 2 . . 1 . 2 1 4 Storage 2 | 1 . . . . . . . 1 . . Processor 1 | . . . . . . . . 1 . . Hackware . | . . . . . . . . . . . Protection 1 | . . . . . . 1 . . . . Artifact . | . . . . . . . . . . . Weapon 18 | 3 . 1 3 . . 1 1 . 3 6 Energy Gun 7 | 1 . . 1 . . 1 . . 1 3 Energy Cannon 1 | . . . . . . . . . . 1 Ballistic Gun 8 | 2 . 1 . . . . 1 . 2 2 Ballistic Cannon 2 | . . . 2 . . . . . . . Launcher . | . . . . . . . . . . . Special Weapon . | . . . . . . . . . . . Impact Weapon . | . . . . . . . . . . . Slashing Weapon . | . . . . . . . . . . . Piercing Weapon . | . . . . . . . . . . . Special Melee Weapon . | . . . . . . . . . . . Unidentified Prototypes 2 | . . . . . . . . 1 . 1 Parts Lost 58 | . 2 1 15 . . 1 3 . 17 19 Power 13 | . 1 1 5 . . . 1 . 2 3 Propulsion 18 | . . . 6 . . . 1 . 5 6 Utility 12 | . . . 2 . . 1 . . 5 4 Weapon 15 | . 1 . 2 . . . 1 . 5 6 Highest Loss Streak 16 | . 2 1 4 . . 1 2 . 16 7 To Critical Strikes . | . . . . . . . . . . . Average Backups 6 | 2 5 7 7 8 8 5 6 7 6 5 Power 1 | 1 1 1 . 1 1 . 1 1 2 1 Propulsion . | . . 1 . . . . . . . . Utility 1 | . . 2 2 3 3 1 1 1 1 1 Weapon 2 | 1 1 2 2 4 4 2 3 3 2 1 Tool/Special . | . . . . . . . . . . . Unused Backups 12 | . . . 6 . . 1 . . . 5 Power . | . . . . . . . . . . . Propulsion 2 | . . . . . . . . . . 2 Utility 4 | . . . 3 . . . . . . 1 Weapon 6 | . . . 3 . . 1 . . . 2 Tool/Special . | . . . . . . . . . . . Average Slot Usage (%) 74 | . 99 99 85 33 33 82 77 89 83 41 Engine 7 | . 14 13 9 . . 9 8 7 5 2 Core 1 | . . . . . . . 6 7 5 3 Leg 22 | . 28 28 23 11 11 28 26 29 23 10 Device 13 | . 14 14 19 11 11 4 . 8 18 10 Storage 9 | . 14 14 11 11 11 11 9 7 6 4 Protection 2 | . . . . . . 9 9 7 4 . Energy Gun 4 | . 5 . 1 . . 9 9 7 5 4 Ballistic Gun 8 | . 22 28 13 . . . 7 7 5 2 Ballistic Cannon 3 | . . . 5 . . 9 1 . . . Peak Build Rating 72 | 9 9 9 14 4 4 18 19 34 38 72 Average Rating 18 | 5 8 8 11 4 4 15 17 30 34 34 On Entrance 9 | . 9 9 9 4 4 4 18 17 34 1 Avg Prop Armor Cover (%) 7 | . . . . . . . . . . 7 Naked Turns 125 | . . . . . . . . . . 125 Heaviest Build 40 | 11 11 11 24 6 6 24 24 35 37 40 Greatest Support 68 | 20 20 20 33 10 10 40 40 55 55 68 Greatest Overweight (x) 6 | . . . 6 . . 1 . . 3 1 Average Overweight (x) . | . . . . . . . . . . . Largest Inventory Capacity 8 | 8 8 8 8 8 8 8 8 8 8 8 Average Capacity 7 | 7 8 8 8 8 8 8 8 8 8 7 Most Carried 8 | 5 7 8 8 8 8 8 8 8 8 8 Average Carried 6 | 2 5 7 7 8 8 5 6 7 6 5 Final Capacity 8 | 8 8 8 8 8 8 8 8 8 8 5 Final Carried 8 | 4 7 8 8 8 8 8 6 8 3 4 Class Distribution -------------------- 53% | Mutant 31% | Scavenger-Mutant 15% | Skirmisher Dominant Class ---------------- Mutant | -10/Materials Scavenger-Mutant | -10/Mines Scavenger-Mutant | -9/Materials Mutant | -9/Mines Mutant | -9/Exiles Mutant | -8/Mines Scavenger-Mutant | -8/Materials Skirmisher | -7/Factory Skirmisher | -6/Factory Mutant | -5/Factory Resources | -11 -10 -10 -9 -9 -9 -8 -8 -7 -6 -5 ----------- Run | Yrd Mat Min Mat Min Exi Min Mat Fac Fac Fac Matter Collected 1488 | 262 86 37 524 . . 409 36 . . 134 Remotely . | . . . . . . . . . . . Salvage Created 1843 | 44 116 50 812 . . 345 100 . . 376 Parts 110 | 7 7 6 49 . . 15 3 . . 23 Haulers Intercepted . | . . . . . . . . . . . Recyclers Shooed . | . . . . . . . . . . . Parts Field Recycled . | . . . . . . . . . . . Retrieved Matter . | . . . . . . . . . . . Parts Self-Destructed . | . . . . . . . . . . . Prevented . | . . . . . . . . . . . Parts Restored . | . . . . . . . . . . . Kills | -11 -10 -10 -9 -9 -9 -8 -8 -7 -6 -5 ------- Run | Yrd Mat Min Mat Min Exi Min Mat Fac Fac Fac Combat Hostiles Destroyed 59 | . 5 3 26 . . 13 2 . . 10 Guns 33 | . 5 3 9 . . 6 2 . . 8 Cannons 24 | . . . 17 . . 7 . . . . AOE 2 | . . . . . . . . . . 2 Classes Destroyed 8 | 1 2 . 3 . . 1 . . . 1 Tunneler 3 | 2 . . . . . 1 . . . . Recycler 1 | . . . 1 . . . . . . . Swarmer 28 | . 3 3 9 . . 6 . . . 7 Grunt 17 | . 2 . 10 . . 4 . . . 1 Brawler 5 | . . . 2 . . 2 . . . 1 Sentry 7 | . . . 5 . . . 2 . . . Hunter 1 | . . . . . . 1 . . . . Programmer 1 | . . . . . . . . . . 1 Best Kill Streak 6 | 1 5 2 6 . . 3 1 . . 3 Combat Bots Only 5 | . 5 2 5 . . 3 1 . . 3 Max Kills in Single Turn 2 | 1 1 1 2 . . 2 1 . . 2 Gunslinging . | . . . . . . . . . . . Exploded 2 | . . . . . . . . . . 2 Melee . | . . . . . . . . . . . Uniques/NPCs Destroyed . | . . . . . . . . . . . Combat | -11 -10 -10 -9 -9 -9 -8 -8 -7 -6 -5 -------- Run | Yrd Mat Min Mat Min Exi Min Mat Fac Fac Fac Hostile Shots Fired 790 | . 41 20 173 . . 51 32 . 144 329 Missed 240 | . 9 4 45 . . 12 2 . 34 134 Hits 550 | . 32 16 128 . . 39 30 . 110 195 Melee 14 | . . . 7 . . 3 . . . 4 Projectile 536 | . 32 16 121 . . 36 30 . 110 191 AOE 1 | . . . . . . . . . 1 . Critical Strikes 18 | . . . 4 . . 2 1 . 3 8 Part Disruptions 2 | . . . . . . . . . . 2 Damage Taken 8348 | . 320 160 1507 . . 497 435 . 1728 3701 Core 1899 | . 18 26 209 . . 97 44 . 500 1005 Absorbed by Shields . | . . . . . . . . . . . Regen/Repaired (Parts) 97 | . . . . . . . . . 97 . Core Remaining (%) 73 | 100 . 82 . . . 23 92 100 41 . Volleys Fired 241 | 10 21 11 87 . . 35 17 . 14 46 Largest 3 | 2 2 2 2 . . 2 2 . 3 3 Hottest 167 | 60 60 40 93 . . 100 100 . 103 167 Shots Fired 448 | 20 40 22 155 . . 70 32 . 26 83 Gun 337 | 20 40 22 91 . . 35 29 . 26 74 Cannon 111 | . . . 64 . . 35 3 . . 9 Launcher . | . . . . . . . . . . . Special . | . . . . . . . . . . . Kinetic 285 | 10 23 22 134 . . 35 15 . 23 23 Thermal 134 | 10 17 . 21 . . 35 17 . 2 32 Explosive . | . . . . . . . . . . . Electromagnetic 29 | . . . . . . . . . 1 28 Robot Hit Streak 18 | 4 18 6 11 . . 14 9 . 8 8 Robot Miss Streak 5 | 5 2 3 3 . . 4 4 . 2 3 Penetration Max . | . . . . . . . . . . . Secondary Targets 2 | . . . 1 . . . . . . 1 Max Gunslinging Chain 1 | . . . 1 . . . . . . 1 Shots Hit Robots 293 | 9 31 14 103 . . 47 20 . 20 49 Core Hits 100 | 3 10 5 37 . . 20 5 . 3 17 Critical Kills 3 | . . . . . . . . . . 3 Critical Parts Destroyed 3 | . . . . . . . . . . 3 Critical Strikes 10 | . . . 1 . . 2 . . 1 6 Burn 2 | . . . 1 . . 1 . . . . Destroy 6 | . . . . . . . . . . 6 Blast 1 | . . . . . . 1 . . . . Corrupt 1 | . . . . . . . . . 1 . Melee Attacks . | . . . . . . . . . . . Impact . | . . . . . . . . . . . Slashing . | . . . . . . . . . . . Piercing . | . . . . . . . . . . . Sneak Attacks . | . . . . . . . . . . . Combat Hostiles . | . . . . . . . . . . . Follow-up Attacks . | . . . . . . . . . . . Damage Inflicted 4764 | 89 348 105 1751 . . 979 293 . 241 958 Guns 2581 | 89 292 105 550 . . 407 224 . 241 673 Cannons 1869 | . . . 1194 . . 572 69 . . 34 Explosions 300 | . 56 . . . . . . . . 244 Melee . | . . . . . . . . . . . Ramming 14 | . . . 7 . . . . . . 7 Kinetic 2904 | 27 137 105 1557 . . 572 134 . 205 167 Thermal 1417 | 62 211 . 187 . . 407 159 . 20 371 Explosive 244 | . . . . . . . . . . 244 Electromagnetic 185 | . . . . . . . . . 16 169 Impact . | . . . . . . . . . . . Slashing . | . . . . . . . . . . . Piercing . | . . . . . . . . . . . Highest Corruption 25 | . . . . . . . . . . 25 Average Corruption 16 | . . . . . . . . . . 16 Corruption Purged . | . . . . . . . . . . . Corruption Blocked . | . . . . . . . . . . . Effects 23 | . . . . . . . . . . 23 Message Errors 5 | . . . . . . . . . . 5 Matter Fused 5 | . . . . . . . . . . 5 Heat Flow Errors 1 | . . . . . . . . . . 1 Energy Discharges 3 | . . . . . . . . . . 3 Parts Rejected 1 | . . . . . . . . . . 1 Data Loss (minor) 3 | . . . . . . . . . . 3 Data Loss (major) 1 | . . . . . . . . . . 1 Alerts 1 | . . . . . . . . . . 1 Misdirections 1 | . . . . . . . . . . 1 Weapon Failures 2 | . . . . . . . . . . 2 Overload Shots . | . . . . . . . . . . . Overflow Damage 39 | . . . 12 . . 5 . . . 22 Projectiles 17 | . . . 12 . . 5 . . . . Explosions 22 | . . . . . . . . . . 22 Melee . | . . . . . . . . . . . Knockbacks 12 | . . . 5 . . 7 . . . . Impact . | . . . . . . . . . . . Kinetic 10 | . . . 5 . . 5 . . . . Secondary 2 | . . . . . . 2 . . . . Self-Inflicted Damage 227 | . . . . . . . . . . 227 Shots 2 | . . . . . . . . . . 2 Rammed 2 | . . . 2 . . . . . . . Targets Rammed 7 | . . . 3 . . . . . . 4 Kicked 5 | . . . 1 . . . . . . 4 Crushed . | . . . . . . . . . . . Highest Temperature 518 | 40 126 . 35 . . 351 518 . 94 309 Average Temperature 96 | 16 60 . 11 . . 113 224 . 49 88 Received Heat Transfer 1089 | . 96 . 423 . . 135 162 . 57 216 Effects 9 | . . . . . . 1 7 . . 1 Shutdowns 2 | . . . . . . . 2 . . . Energy Bleed 2 | . . . . . . 1 . . . 1 Interference 1 | . . . . . . . 1 . . . Damage (minor) 2 | . . . . . . . 2 . . . Damage (major) 2 | . . . . . . . 2 . . . Siege Activations . | . . . . . . . . . . . Martial Activations . | . . . . . . . . . . . Shielding Activations . | . . . . . . . . . . . Robots Disrupted . | . . . . . . . . . . . Combat Hostiles . | . . . . . . . . . . . Robots Corrupted . | . . . . . . . . . . . Combat Hostiles . | . . . . . . . . . . . Parts Fried 2 | . . . . . . . . . . 2 Impact Corruptions . | . . . . . . . . . . . Robots Melted . | . . . . . . . . . . . Combat Hostiles . | . . . . . . . . . . . Parts Melted 4 | . . . 1 . . . 2 . . 1 Heat Transferred 3153 | 150 450 . 555 . . 1036 333 . 37 592 Parts Sabotaged . | . . . . . . . . . . . Parts Stolen . | . . . . . . . . . . . Parts Stripped . | . . . . . . . . . . . Power Chain Reactions . | . . . . . . . . . . . Alert | -11 -10 -10 -9 -9 -9 -8 -8 -7 -6 -5 ------- Run | Yrd Mat Min Mat Min Exi Min Mat Fac Fac Fac Maximum Alert Level 1 | . . . 1 . . . . . . 1 Low Security (%) 95 | 100 100 100 87 100 . 100 100 100 100 99 Level 1 4 | . . . 12 . . . . . . . Level 2 . | . . . . . . . . . . . Level 3 . | . . . . . . . . . . . Level 4 . | . . . . . . . . . . . Level 5 . | . . . . . . . . . . . High Security . | . . . . . . . . . . . Max Security . | . . . . . . . . . . . Peak Influence 276 | 5 149 85 276 106 . 124 43 . 5 205 Initial 106 | . . 40 . 106 . . 43 . . . Average 53 | . 110 39 87 101 . 49 12 . . 50 Influence Increases 2241 | 10 216 115 914 . . 425 65 . 5 491 Destroy 0b10 Robot/C 1240 | . 100 60 580 . . 260 40 . . 200 Destroy 0b10 Robot/NC 20 | 10 . . 5 . . 5 . . . . Destroy Leader 230 | . 20 10 110 . . 50 20 . . 20 Allied During Kill 11 | . . . 11 . . . . . . . Trap Triggered on 0b10 10 | . 10 . . . . . . . . . Successful Hack 60 | . 7 . 31 . . 12 5 . 5 . Disable Machine 75 | . 45 . . . . . . . . 30 Destroy Structure 130 | . 34 . 12 . . 8 . . . 76 Lose Combat Pursuer 465 | . . 45 165 . . 90 . . . 165 Influence Decreases 2187 | 10 110 221 640 178 96 313 177 . 5 437 Entered New Map 399 | . . 66 . 168 96 . 69 . . . Time Decay 1208 | 10 90 145 300 10 . 303 98 . 5 247 Lost Part 390 | . 20 10 150 . . 10 10 . . 190 Lost Ally 40 | . . . 40 . . . . . . . Purge Threat 150 | . . . 150 . . . . . . . Squads Dispatched 9 | . 1 . 2 . . . . . 1 5 Investigation 1 | . 1 . . . . . . . . . Extermination 4 | . . . . . . . . . 1 3 Reinforcement 4 | . . . 2 . . . . . . 2 Assault . | . . . . . . . . . . . Garrison . | . . . . . . . . . . . Intercept . | . . . . . . . . . . . Searches Triggered . | . . . . . . . . . . . Construction Impeded . | . . . . . . . . . . . Haulers Reinforced . | . . . . . . . . . . . Active Scanning Responses . | . . . . . . . . . . . Cargo Convoy Interrupts . | . . . . . . . . . . . Stealth | -11 -10 -10 -9 -9 -9 -8 -8 -7 -6 -5 --------- Run | Yrd Mat Min Mat Min Exi Min Mat Fac Fac Fac Distress Signals 5 | . . . 3 . . . 1 . 1 . Communications Jammed . | . . . . . . . . . . . Distress Signals . | . . . . . . . . . . . Times Spotted 124 | . 6 13 42 . . 19 8 . 11 25 Peak Tracking Total 7 | . 5 5 7 . . 4 6 . 7 5 Tactical Retreats 19 | . . 2 6 . . 4 . . . 7 Traps | -11 -10 -10 -9 -9 -9 -8 -8 -7 -6 -5 ------- Run | Yrd Mat Min Mat Min Exi Min Mat Fac Fac Fac Traps Triggered 2 | . . . . . . . . . . 2 Indirectly . | . . . . . . . . . . . Trap Hack Attempts . | . . . . . . . . . . . Triggered . | . . . . . . . . . . . Disarmed . | . . . . . . . . . . . Reprogrammed 6 | . 6 . . . . . . . . . Reused 1 | . 1 . . . . . . . . . Traps Extracted . | . . . . . . . . . . . Installed . | . . . . . . . . . . . Triggered 1 | . 1 . . . . . . . . . Machines | -11 -10 -10 -9 -9 -9 -8 -8 -7 -6 -5 ---------- Run | Yrd Mat Min Mat Min Exi Min Mat Fac Fac Fac Machines Disabled 5 | . 3 . . . . . . . . 2 Max in Single Turn 3 | . 3 . . . . . . . . 2 Machines Repaired . | . . . . . . . . . . . Machines Dismantled . | . . . . . . . . . . . Machines Sabotaged . | . . . . . . . . . . . Overloaded Fab Kills . | . . . . . . . . . . . Hacking | -11 -10 -10 -9 -9 -9 -8 -8 -7 -6 -5 --------- Run | Yrd Mat Min Mat Min Exi Min Mat Fac Fac Fac Machines Accessed 21 | . 2 . 8 . 1 1 3 . 4 2 Terminals 15 | . 2 . 6 . . 1 2 . 2 2 Fabricators 1 | . . . . . . . . . 1 . Repair Stations 2 | . . . 1 . . . . . 1 . Recycling Units 1 | . . . . . . . 1 . . . Scanalyzers 1 | . . . 1 . . . . . . . Garrison Access . | . . . . . . . . . . . Total Hacks 47 | . 6 . 21 . 1 5 5 . 5 4 Successful 25 | . 3 . 11 . 1 2 3 . 4 1 Failed 22 | . 3 . 10 . . 3 2 . 1 3 Catastrophic 2 | . . . 1 . . . . . . 1 Database Lockouts . | . . . . . . . . . . . Manual 2 | . . . 1 . 1 . . . . . Terminals 37 | . 6 . 17 . . 5 3 . 2 4 Fabricators 1 | . . . . . . . . . 1 . Repair Stations 4 | . . . 2 . . . . . 2 . Recycling Units 2 | . . . . . . . 2 . . . Scanalyzers 2 | . . . 2 . . . . . . . Garrison Access . | . . . . . . . . . . . Terminal Hacks 18 | . 3 . 9 . 1 2 1 . 1 1 Record 3 | . . . 2 . . . . . . 1 Prototype ID Bank 6 | . 1 . 4 . . . . . 1 . Branch Access Points 1 | . . . 1 . . . . . . . Unreport Threat 1 | . . . 1 . . . . . . . Reprogram Traps 2 | . 2 . . . . . . . . . Patrol Status 1 | . . . . . . 1 . . . . Recall Investigation 1 | . . . 1 . . . . . . . Zone Layout 2 | . . . . . . 1 1 . . . Proto ID Catalog 1 | . . . . . 1 . . . . . Fabricator Hacks 1 | . . . . . . . . . 1 . Network Status 1 | . . . . . . . . . 1 . Repair Station Hacks 3 | . . . 1 . . . . . 2 . Scan Component 2 | . . . 1 . . . . . 1 . Repair 1 | . . . . . . . . . 1 . Recycling Unit Hacks 2 | . . . . . . . 2 . . . Process 1 | . . . . . . . 1 . . . Report Inventory 1 | . . . . . . . 1 . . . Scanalyzer 1 | . . . 1 . . . . . . . Retrieve Study 1 | . . . 1 . . . . . . . Garrison Access Hacks . | . . . . . . . . . . . Unauthorized Hacks . | . . . . . . . . . . . Terminals . | . . . . . . . . . . . Fabricators . | . . . . . . . . . . . Repair Stations . | . . . . . . . . . . . Recycling Units . | . . . . . . . . . . . Scanalyzers . | . . . . . . . . . . . Garrison Access . | . . . . . . . . . . . Data Cores Recovered . | . . . . . . . . . . . Used . | . . . . . . . . . . . Hacking Detections 16 | . 2 . 8 . . 1 1 . 2 2 Full Trace Events . | . . . . . . . . . . . Feedback Events . | . . . . . . . . . . . Feedback Blocked . | . . . . . . . . . . . Robot Schematics Acquired . | . . . . . . . . . . . Robots Built . | . . . . . . . . . . . Authchips . | . . . . . . . . . . . Time . | . . . . . . . . . . . Total Robot Build Rating . | . . . . . . . . . . . Part Schematics Acquired . | . . . . . . . . . . . Parts Built . | . . . . . . . . . . . Authchips . | . . . . . . . . . . . Time . | . . . . . . . . . . . Total Part Build Rating . | . . . . . . . . . . . Part Studies Acquired 1 | . . . 1 . . . . . . . Parts Repaired 1 | . . . . . . . . . 1 . Time 38 | . . . . . . . . . 38 . Parts Recycled . | . . . . . . . . . . . Recycled Matter 7 | . . . . . . . 7 . . . Retrieved Matter . | . . . . . . . . . . . Retrieved Components . | . . . . . . . . . . . Parts Scanalyzed . | . . . . . . . . . . . Part Schematics Acquired . | . . . . . . . . . . . Parts Damaged . | . . . . . . . . . . . Bothacking | -11 -10 -10 -9 -9 -9 -8 -8 -7 -6 -5 ------------ Run | Yrd Mat Min Mat Min Exi Min Mat Fac Fac Fac Used RIF Installer . | . . . . . . . . . . . Robots Hacked . | . . . . . . . . . . . Non-combat . | . . . . . . . . . . . Combat . | . . . . . . . . . . . Robot Hacks Applied . | . . . . . . . . . . . Relay Couplers Released . | . . . . . . . . . . . Fabnet Peak Effective % . | . . . . . . . . . . . Robots Rewired . | . . . . . . . . . . . Allies Hacked . | . . . . . . . . . . . Hacks Repelled . | . . . . . . . . . . . Allies | -11 -10 -10 -9 -9 -9 -8 -8 -7 -6 -5 -------- Run | Yrd Mat Min Mat Min Exi Min Mat Fac Fac Fac Total Allies 3 | . . 3 . . . . . . . . Largest Group 3 | . . 3 3 . . . . . . . Highest-Rated Group 40 | . . 40 40 . . . . . . . Highest-Rated Ally 16 | . . 16 16 . . . . . . . Total Orders . | . . . . . . . . . . . Ally Attacks 13 | . . 1 12 . . . . . . . Total Damage 164 | . . 18 146 . . . . . . . Kills 3 | . . . 3 . . . . . . . Allies Corrupted . | . . . . . . . . . . . Allies Melted . | . . . . . . . . . . . Intel | -11 -10 -10 -9 -9 -9 -8 -8 -7 -6 -5 ------- Run | Yrd Mat Min Mat Min Exi Min Mat Fac Fac Fac Active Infowar (turns) 3322 | 27 209 311 1939 . . . . 199 636 1 Optics 806 | . . . . . . . . 199 607 . Sensors 807 | . . . . . . . . 171 636 . Terrain 1795 | 27 209 311 1248 . . . . . . . Seismic 1939 | . . . 1939 . . . . . . . Jamming 1 | . . . . . . . . . . 1 Robot Analysis Total . | . . . . . . . . . . . Derelict Logs Recovered . | . . . . . . . . . . . Drone Launches . | . . . . . . . . . . . Drone Recoveries . | . . . . . . . . . . . Exploration | -11 -10 -10 -9 -9 -9 -8 -8 -7 -6 -5 ------------- Run | Yrd Mat Min Mat Min Exi Min Mat Fac Fac Fac Turns Passed 6514 | 143 209 311 2119 32 387 855 368 297 702 1091 Spaces Moved 3823 | 84 115 219 770 31 369 619 180 224 315 897 Core 481 | 8 . . 30 . . . . . 42 401 Treads 77 | . . . 77 . . . . . . . Legs 3115 | 76 115 219 575 31 369 619 180 224 262 445 Wheels 99 | . . . 88 . . . . . 11 . Hover 51 | . . . . . . . . . . 51 Flight . | . . . . . . . . . . . Fastest Speed 50 | 50 120 120 90 105 105 105 110 110 90 50 Average Speed 112 | 113 120 120 127 105 105 113 114 114 112 96 Slowest Speed 350 | 120 120 120 350 105 105 175 115 115 200 190 Overloaded Moves . | . . . . . . . . . . . Propulsion Burnouts . | . . . . . . . . . . . Robots Hopped . | . . . . . . . . . . . Potential Cave-ins . | . . . . . . . . . . . Cave-ins Triggered . | . . . . . . . . . . . Exploration Rate (%) 32 | 5 26 38 49 6 86 87 17 7 13 24 Regions Visited 10 Branch Regions 4 Pre-discovered Areas . | . . . . . . . . . . . Known Exits Taken 1 | . . . 1 . . . . . . . Unknown Exits Taken 9 | 1 1 1 . 1 1 1 1 1 1 . Scrap Searched 4 | . . 3 . . . 1 . . . . Spaces Dug . | . . . . . . . . . . . Terrain Destroyed 111 | . 56 . 8 . . 8 . . . 39 Melee . | . . . . . . . . . . . Projectile 18 | . . . 8 . . 8 . . . 2 AOE 93 | . 56 . . . . . . . . 37 Terrain Rammed . | . . . . . . . . . . . Walls Destroyed . | . . . . . . . . . . . Machines Disabled . | . . . . . . . . . . . Actions | -11 -10 -10 -9 -9 -9 -8 -8 -7 -6 -5 --------- Run | Yrd Mat Min Mat Min Exi Min Mat Fac Fac Fac Total 5656 | 114 150 252 1772 30 368 704 312 265 641 1048 Wait 1336 | 1 2 15 828 . . 17 110 26 306 31 Move 3813 | 83 114 218 769 30 368 618 179 223 314 897 Hop . | . . . . . . . . . . . Pick Up 101 | 11 7 4 26 . . 13 2 8 1 29 Fast Attach . | . . . . . . . . . . . Attach 84 | 8 2 1 25 . . 6 4 5 6 27 Detach 18 | 1 . . 12 . . . . . . 5 Swap 19 | . 2 1 7 . . 8 . 1 . . Drop 37 | . 2 2 15 . . 7 . 2 . 9 Fire 241 | 10 21 11 87 . . 35 17 . 14 46 Melee . | . . . . . . . . . . . Ram 2 | . . . 2 . . . . . . . Kick 5 | . . . 1 . . . . . . 4 Crush . | . . . . . . . . . . . Escape Stasis . | . . . . . . . . . . . Rewire . | . . . . . . . . . . . Trap . | . . . . . . . . . . . Miscellaneous . | . . . . . . . . . . . Route ------- -11/Scrapyard -10/Materials -10/Mines -9/Materials (discovered 2 exits: *Mat / *Min) -9/Mines -9/Exiles -8/Mines -8/Materials -7/Factory -6/Factory -5/Factory History --------- Turn | Location | Event 40 | -11/Scrapyard | Discovered new exit (range 12) 144 | -11/Scrapyard | Entered Materials 302 | -10/Materials | Build established: Mutant 304 | -10/Materials | Discovered new exit (range 16) 353 | -10/Materials | Entered Mines 641 | -10/Mines | Assisted by bots powering up and referring to "LRC-V3" 648 | -10/Mines | Assembled infested the area 653 | -10/Mines | Assisted by a Guerilla fighting off Assembled 658 | -10/Mines | Discovered new exit (range 5) 664 | -10/Mines | Entered Materials 664 | -9/Materials | Accompanied by 3 allies 664 | -9/Materials | Evolved 2 slots: Propulsion x1, Utility x1 740 | -9/Materials | Build established: Scavenger-Mutant 1563 | -9/Materials | Lost 3 allies 1643 | -9/Materials | Lost 3 parts (2p1n) 2109 | -9/Materials | Lost 4 parts (3n1w) 2315 | -9/Materials | Discovered new exit (range 14) 2351 | -9/Materials | Build established: Mutant 2679 | -9/Materials | Lost 3 parts (1p2n) 2693 | -9/Materials | Discovered new exit (range 11) 2744 | -9/Materials | Core integrity fell below 50% 2764 | -9/Materials | Identified exit to Mines 2783 | -9/Materials | Entered Mines 2810 | -9/Mines | Deemed a non-threat by the Exiles lab entrance 2811 | -9/Mines | Discovered new exit (range 5) 2815 | -9/Mines | Entered Exiles 2841 | -9/Exiles | Met 8R-AWN 2859 | -9/Exiles | Met EX-HEX 2890 | -9/Exiles | Met EX-BIN 2903 | -9/Exiles | Aligned with FarCom system 2904 | -9/Exiles | Given EX-Vault access code 2928 | -9/Exiles | Opened EX-Vault 2955 | -9/Exiles | Warned to stay clear of 0b10 Research branches 2992 | -9/Exiles | Met EX-DEC 3040 | -9/Exiles | Visited The Gauntlet 3188 | -9/Exiles | Discovered new exit (range 14) 3202 | -9/Exiles | Entered Mines 4051 | -8/Mines | Discovered new exit (range 6) 4057 | -8/Mines | Entered Materials 4057 | -8/Materials | Evolved 2 slots: Power x1, Utility x1 4402 | -8/Materials | Discovered new exit (range 3) 4425 | -8/Materials | Entered Factory 4425 | -7/Factory | Evolved 2 slots: Propulsion x1, Utility x1 4719 | -7/Factory | Discovered new exit (range 5) 4722 | -7/Factory | Entered another Factory area 4722 | -6/Factory | Evolved 2 slots: Utility x1, Weapon x1 4823 | -6/Factory | Build established: Skirmisher 5097 | -6/Factory | Repaired Carbon-fiber Leg 5375 | -6/Factory | Core integrity fell below 50% 5412 | -6/Factory | Discovered new exit (range 12) 5414 | -6/Factory | Lost 16 parts (2p5n4u5w) 5424 | -6/Factory | Entered another Factory area 5424 | -5/Factory | Evolved 2 slots: Power x1, Utility x1 5664 | -5/Factory | Build established: Mutant 6004 | -5/Factory | System corruption reached 10% 6034 | -5/Factory | Lost 3 parts (1p2u) 6086 | -5/Factory | Lost 3 parts (2p1u) 6167 | -5/Factory | Spotted B-75 Beast 6281 | -5/Factory | Lost 5 parts (2n3w) 6358 | -5/Factory | Core integrity fell below 50% 6397 | -5/Factory | Lost 7 parts (4n1u2w) 6403 | -5/Factory | Core integrity fell below 20% 6515 | -5/Factory | Destroyed by P-70 Sage with Tesla Rifle Last Messages --------------- Terminal disabled. Power Conduit explodes. Repair Station disabled. Backup Laser I tumbles out of repair station. Backup Plating I tumbles out of repair station. Backup Propulsion I tumbles out of repair station. Backup Plating I tumbles out of repair station. U-05 Engineer lays Concrete. K-01 Serf cleans the Garrison Access. Acquired Enh. Armored Leg. System corrupted: Matter fused (-8). O-24 Administrator: "IFF HANDSHAKE FAILED. SECURING TERMINAL." ALERT: Hostiles spotted, dispatching reinforcements to Terminal F009. System corrupted: Matter fused (-5). ,KZ#,=ADLN:NUP|JAFCAJUVGN|I,P&IZ<7ZHGGVC ALERT: Potential suspicious activity detected, Programmers report to Factory Zone 2O. Map ----- +----------------------------------------------------+ | ???????+ #??????????? #??????????????? | | ???????#### #??????????? #??????????????? | | ??????????# #??????????? #??????????????? | | ??????????# #??????????? ??????????????? | | ??????????# #??????????? ?????????????? | | ????#+##### ##?????????? ?????????????? | | ????# +?????????? ????????????????? | | ????# ########??????????????????????????????? | | ????# #??????????????????? ?????????????????? | | ????# #?????????????????? ???????????????? | | ????# #????????????????? ??????????????? | | #####+########?????????? ??????????????? | | # #????????? #?????????????? | | # """ """ #+######## #?????????????? | | # """ """ # #?????????????? | | # """ """ # #?????????????? | | # # #?????????????? | | # """ """ + #?????????????? | | # """ """ # #?????????????? | | # """ """ # #?????????????? | | # # ^ #?????????????? | | # ] #####+#+#########??????????????? | | # # #?????????????????? | | # # """""p #?????????????????? | | ############## """"" #?????????????????? | | ?????????????# """ @ #?????????????????? | | ?????????????# #?????????????????? | | ?????????????# """"" #?????????????????? | | ?????????????# """"" #?????????????????? | | ?????????????# """ #?????????????????? | | ?????????????# #?????????????????? | | ?????????????# #?????????????????? | | ?????????????#! #?????????????????? | | ?????????????# ! #?????????????????? | | ?????????????##############?????????????????? | | ????????????????????????????????????????????? | | ????????????????????????????????????????????? | | ????????????????????????????????????????????? | | ????????????????????????????????????????????? | | ????????????????????????????????????????????? | | ????????????????????????????????????????????? | | ????????????????????????????????????????????? | | ????????????????????????????????????????????? | | ????????????????????????????????????????????? | | | | | | | | | | | | | +----------------------------------------------------+ Best States ------------- Heat Dissipation 40 Energy Generation 27 Energy Capacity 450 Matter Stores 300 Matter Capacity 300 Sight Range 18 Robot Scan Range 15 Terrain Scan Range 16 Terrain Scan Density 10 EM Shielding 4 Armor Coverage 150 Evasion (%) 63 Recoil Reduction 1 Item Schematics ----------------- None Robot Schematics ------------------ None Fabricated ------------ Nothing Repaired ---------- Carbon-fiber Leg | 11% | -6/Factory Studied --------- Aluminum Leg | -9/Materials | Hacked Alien Tech Used ----------------- None Achievements -------------- None Challenges ------------ None Game ------ Seed ReinforcedAntisysTerrabomb Manual? 0 Play Time 00:55:34 Cumulative 23.5 hours Start 2026.09.14 @ 12:35:00 End 2026.09.16 @ 16:04:54 Sessions 1 Manual Loads 0 Difficulty Rogue Special Mode None Game No. 38 Rogue 36 Adventurer 2 Explorer 0 Win Type - Total 0 Types 0/0/0/0/0/0/0/0/0/0 Lore% 16 Gallery% 21 Achievement% 18 Wizard Run 0 Options --------- Layout 1 ASCII 1 Keyboard 0 Movement Numpad Keybinds 0 Fullscreen 2 Font 24/Smallcaps Map View 50x40 Zoom Use 0% Tactical HUD 0 Map Filters NONE Filters NONE Steam 1 RUN: a2b5b0ab-b652-4ee4-b27a-f825d92bc7c1